fUSD/lending_fUSD_20260505
["ID","MTS","AMOUNT","RATE_DAILY","PERIOD"]
[421580551,1777914641000,-150.0,0.00027873,5]
[421580575,1777914648000,-506.0,0.00027137,2]
[421580576,1777914648000,-25137.07178115,0.000279,2]
[421580577,1777914649000,-1870.25817072,0.000279,2]
[421580578,1777914649000,-1097.36403237,0.000279,2]
[421580579,1777914949000,504.10462625,0.00027799,120]
[421580580,1777915171000,154.79,0.0002332,30]
[421580581,1777915172000,154.79,0.0002381,30]
[421580582,1777915254000,500.0,0.00027899,120]
[421580585,1777915255000,500.0,0.00027899,120]
[421580584,1777915255000,500.0,0.00027899,120]
[421580583,1777915255000,500.0,0.00027899,120]
[421580586,1777915276000,-185.2869864,0.00016438,2]
[421580587,1777915276000,-108.8130136,0.00016438,2]
[421580588,1777915332000,269.6,0.00016438,2]
[421580590,1777915423000,507.6433633,0.00027799,120]
[421580589,1777915423000,500.0,0.00027799,120]
[421580591,1777915518000,168.38,0.00012246,2]
[421580592,1777915627000,2331.62,0.00015,2]
[421580601,1777915803000,300.0,0.00024,30]
[421580604,1777915832000,-344.4031742,0.00011999,2]
[421580606,1777915832000,-75506.53800148,0.00012,2]
[421580605,1777915832000,-188544.07923471,0.00012,2]
[421580608,1777915832000,-1254.41808677,0.00012,2]
[421580607,1777915832000,-26693.65460572,0.00012,2]
[421580628,1777915840000,-289.08809013,0.00011999,2]
[421580630,1777915841000,-500.0,0.00011999,2]
[421580632,1777915841000,-403.20465285,0.00011999,2]
[421580629,1777915841000,-210.91190987,0.00011999,2]
[421580633,1777915841000,-291.70846449,0.00011999,2]
[421580631,1777915841000,-215.13792673,0.00011999,2]
[421580634,1777915841000,-2207285.54334548,0.00012,2]
[421580639,1777915843000,-49.23269638,0.00012,2]
[421580640,1777915846000,-2126.93646515,0.00012,2]
[421580641,1777915846000,-527.2833402,0.00012,2]
[421580647,1777915979000,-239.835,0.0001176,2]
[421580648,1777915979000,-300.0,0.00011999,2]
[421580649,1777915979000,-1996179.404,0.00012,2]
[421580646,1777915979000,-3280.761,0.0001176,2]
[421580654,1777916214000,500.0,0.00027799,120]
[421580655,1777916215000,500.0,0.00027799,120]
[421580657,1777916965000,-230.84,0.00011119,2]
[421580659,1777916965000,-2624.608,0.0001176,2]
[421580658,1777916965000,-500.0,0.000117,4]
[421580660,1777916965000,-191.868,0.0001176,2]
[421580662,1777916965000,-1161.429588,0.00011879,2]
[421580661,1777916965000,-1000.0,0.000118,4]
[421580666,1777917031000,-397.84647269,0.0001188,2]
[421580673,1777917031000,-1525.79140627,0.00011954,2]
[421580667,1777917031000,-532.39734675,0.0001188,2]
[421580669,1777917031000,-1500.0,0.000119,4]
[421580670,1777917031000,-1200.0,0.00011953,2]
[421580672,1777917031000,-156.9673948,0.00011954,2]
[421580668,1777917031000,-976.06378488,0.0001188,2]
[421580671,1777917031000,-3062.62112966,0.00011954,2]
[421580674,1777917031000,-150.0,0.00011999,2]
[421580684,1777917031000,-1849.66319346,0.00012,2]
[421580681,1777917031000,-1160.87387984,0.00012,2]
[421580675,1777917031000,-632.24325699,0.00011999,2]
[421580678,1777917031000,-60675.38737457,0.00012,2]
[421580677,1777917031000,-196.9514071,0.00011999,2]
[421580680,1777917031000,-7833.94834106,0.00012,2]
[421580679,1777917031000,-10327.40063787,0.00012,2]
[421580683,1777917031000,-1614.25183828,0.00012,2]
[421580682,1777917031000,-606.0,0.00012,2]
[421580676,1777917031000,-554.19592514,0.00011999,2]
[421580833,1777917037000,-2484.84122466,0.00012,2]
[421580832,1777917037000,-691.58645727,0.00012,2]
[421580836,1777917037000,-846.40825791,0.00012,2]
[421580838,1777917037000,-748.26893567,0.00012,2]
[421580831,1777917037000,-708.38683977,0.00012,2]
[421580834,1777917037000,-47963.41993777,0.00012,2]
[421580835,1777917037000,-380.52932165,0.00012,2]
[421580839,1777917037000,-874.22355268,0.00012,2]
[421580848,1777917037000,-589.97869018,0.00012,2]
[421580840,1777917037000,-2992.09560657,0.00012,2]
[421580843,1777917037000,-539.996,0.00012,2]
[421580841,1777917037000,-362.89982535,0.00012,2]
[421580842,1777917037000,-2844.33929163,0.00012,2]
[421580845,1777917037000,-315.0,0.00012,2]
[421580844,1777917037000,-742.0436559,0.00012,2]
[421580846,1777917037000,-1089.19505249,0.00012,2]
[421580837,1777917037000,-3494.11304809,0.00012,2]
[421580849,1777917038000,-2107.649595,0.00012,2]
[421580851,1777917038000,-86635.9199613,0.00012,2]
[421580852,1777917038000,-4564.38736795,0.00012,2]
[421580850,1777917038000,-796.01445531,0.00012,2]
[421581080,1777917039000,-1535396.2574441,0.00012,2]
[421581087,1777917039000,-152.0,0.00012254,7]
[421581089,1777917039000,-152.0,0.00012254,7]
[421581082,1777917039000,-16409.88343808,0.00012054,2]
[421581091,1777917039000,-152.0,0.00012254,7]
[421581096,1777917039000,-197.61,0.00013115,2]
[421581084,1777917039000,-250.0,0.00012231,2]
[421581098,1777917039000,-1680.0,0.00013148,2]
[421581100,1777917039000,-200.0,0.00013249,2]
[421581102,1777917039000,-500.0,0.00013698,2]
[421581104,1777917039000,-500.0,0.00013698,2]
[421581093,1777917039000,-819.70075855,0.00012772,2]
[421581106,1777917039000,-218.49649681,0.00013698,2]
[421581174,1777917040000,-150.0,0.00016052,2]
[421581182,1777917040000,-150.0,0.00016189,2]
[421581180,1777917040000,-150.0,0.00016175,2]
[421581188,1777917040000,-150.0,0.00016298,2]
[421581190,1777917040000,-150.0,0.00016326,2]
[421581185,1777917040000,-150.0,0.00016237,2]
[421581191,1777917040000,-150.0,0.00016349,2]
[421581176,1777917040000,-150.0,0.00016052,2]
[421581175,1777917040000,-150.0,0.00016052,2]
[421581173,1777917040000,-150.0,0.00016052,2]
[421581172,1777917040000,-150.0,0.00016052,2]
[421581187,1777917040000,-150.0,0.0001625,2]
[421581179,1777917040000,-150.0,0.00016137,2]
[421581207,1777917040000,-151.0,0.00016438,2]
[421581178,1777917040000,-150.0,0.00016114,2]
[421581177,1777917040000,-1562.31,0.00016095,2]
[421581194,1777917040000,-150.0,0.00016376,2]
[421581196,1777917040000,-150.0,0.00016421,2]
[421581203,1777917040000,-150.0,0.00016438,2]
[421581193,1777917040000,-150.0,0.0001636,2]
[421581204,1777917040000,-221.0,0.00016438,2]
[421581206,1777917040000,-151.0,0.00016438,2]
[421581198,1777917040000,-347.7,0.00016438,2]
[421581171,1777917040000,-150.0,0.00016052,2]
[421581199,1777917040000,-150.0,0.00016438,2]
[421581202,1777917040000,-152.0,0.00016438,2]
[421581201,1777917040000,-152.0,0.00016438,2]
[421581205,1777917040000,-151.0,0.00016438,2]
[421581183,1777917040000,-150.0,0.00016214,2]
[421581169,1777917040000,-1525.79140624,0.00015934,2]
[421581146,1777917040000,-2158.0,0.00014463,2]
[421581160,1777917040000,-2000.0,0.00015436,2]
[421581210,1777917040000,-150.0,0.00016448,2]
[421581110,1777917040000,-500.0,0.00013698,2]
[421581112,1777917040000,-500.0,0.00013698,2]
[421581108,1777917040000,-500.0,0.00013698,2]
[421581114,1777917040000,-500.0,0.00013698,2]
[421581120,1777917040000,-154.79,0.00013699,2]
[421581116,1777917040000,-500.0,0.00013698,2]
[421581118,1777917040000,-500.0,0.00013698,2]
[421581123,1777917040000,-196.6,0.00013704,2]
[421581125,1777917040000,-3062.62112962,0.00013726,2]
[421581135,1777917040000,-200.0,0.00014019,2]
[421581141,1777917040000,-500.0,0.00014274,2]
[421581139,1777917040000,-154.79,0.00014155,2]
[421581158,1777917040000,-280.54,0.00015316,2]
[421581137,1777917040000,-218.07,0.00014149,2]
[421581127,1777917040000,-2500.0,0.00013808,2]
[421581129,1777917040000,-16409.88343799,0.00013815,2]
[421581133,1777917040000,-250.0,0.00014,2]
[421581131,1777917040000,-154.79,0.00013927,2]
[421581144,1777917040000,-154.79,0.00014384,2]
[421581148,1777917040000,-1243.5765911,0.00014726,2]
[421581162,1777917040000,-3062.62112962,0.00015498,2]
[421581156,1777917040000,-500.0,0.0001515,2]
[421581154,1777917040000,-196.57,0.0001515,2]
[421581166,1777917040000,-9220.31,0.00015637,2]
[421581150,1777917040000,-150.0,0.00014726,2]
[421581152,1777917040000,-182354.56308515,0.00015,2]
[421581164,1777917040000,-16409.88343799,0.00015575,2]
[421581142,1777917040000,-1630.09,0.00014316,2]
[421581208,1777917040000,-150.0,0.00016438,2]
[421581259,1777917040000,-1000.0,0.00017119,2]
[421581209,1777917040000,-153.0,0.00016438,2]
[421581261,1777917040000,-150.0,0.0001715,2]
[421581274,1777917040000,-150.0,0.00017287,2]
[421581276,1777917040000,-238.64,0.00017305,2]
[421581264,1777917040000,-150.0,0.00017187,2]
[421581278,1777917040000,-16409.88343799,0.00017336,2]
[421581273,1777917040000,-150.0,0.00017282,2]
[421581262,1777917040000,-150.0,0.00017159,2]
[421581281,1777917040000,-150.0,0.00017349,2]
[421581280,1777917040000,-150.0,0.00017344,2]
[421581268,1777917040000,-150.0,0.00017241,2]
[421581269,1777917040000,-150.0,0.00017241,2]
[421581266,1777917040000,-150.0,0.00017221,2]
[421581271,1777917040000,-3062.62112962,0.00017269,2]
[421581248,1777917040000,-150.0,0.00016975,2]
[421581283,1777917040000,-44365.074993,0.0001735,2]
[421581297,1777917040000,-150.0,0.00017511,2]
[421581295,1777917040000,-150.0,0.00017467,2]
[421581299,1777917040000,-150.0,0.00017528,2]
[421581302,1777917040000,-150.0,0.00017561,2]
[421581300,1777917040000,-150.0,0.00017538,2]
[421581304,1777917040000,-150.0,0.0001759,2]
[421581286,1777917040000,-2000.0,0.00017366,2]
[421581288,1777917040000,-150.0,0.00017405,2]
[421581293,1777917040000,-150.0,0.00017439,2]
[421581290,1777917040000,-150.0,0.00017424,2]
[421581292,1777917040000,-150.0,0.00017428,2]
[421581306,1777917040000,-150.0,0.00017637,2]
[421581212,1777917040000,-150.0,0.00016483,2]
[421581285,1777917040000,-1142.15755731,0.00017359,2]
[421581255,1777917040000,-150.0,0.00017098,2]
[421581308,1777917040000,-150.0,0.00017651,2]
[421581254,1777917040000,-150.0,0.00017043,2]
[421581251,1777917040000,-150.0,0.00017025,2]
[421581217,1777917040000,-150.0,0.00016601,2]
[421581216,1777917040000,-500.0,0.00016571,2]
[421581215,1777917040000,-500.0,0.00016571,2]
[421581214,1777917040000,-150.0,0.00016544,2]
[421581211,1777917040000,-150.0,0.00016464,2]
[421581213,1777917040000,-150.0,0.00016538,2]
[421581218,1777917040000,-150.0,0.00016606,2]
[421581220,1777917040000,-150.0,0.00016647,2]
[421581221,1777917040000,-150.0,0.00016667,2]
[421581229,1777917040000,-501.06970518,0.00016811,2]
[421581222,1777917040000,-150.0,0.00016701,2]
[421581225,1777917040000,-500.0,0.00016756,2]
[421581224,1777917040000,-150.0,0.00016738,2]
[421581219,1777917040000,-150.0,0.00016647,2]
[421581227,1777917040000,-150.0,0.0001679,2]
[421581249,1777917040000,-150.0,0.00017012,2]
[421581245,1777917040000,-150.0,0.00016944,2]
[421581257,1777917040000,-1000.0,0.00017119,2]
[421581252,1777917040000,-150.0,0.00017036,2]
[421581223,1777917040000,-150.0,0.00016729,2]
[421581241,1777917040000,-150.0,0.00016875,2]
[421581246,1777917040000,-150.0,0.00016944,2]
[421581237,1777917040000,-150.0,0.00016845,2]
[421581232,1777917040000,-406.11739145,0.00016811,2]
[421581234,1777917040000,-500.0,0.00016811,2]
[421581240,1777917040000,-150.0,0.00016863,2]
[421581238,1777917040000,-150.0,0.00016852,2]
[421581243,1777917040000,-150.0,0.00016913,2]
[421581371,1777917041000,-180.0,0.0002,2]
[421581364,1777917041000,-1525.79140624,0.00019914,2]
[421581367,1777917041000,-214.0,0.0002,2]
[421581384,1777917041000,-193.05,0.00020145,2]
[421581377,1777917041000,-158.54222813,0.0002,2]
[421581365,1777917041000,-505.68510712,0.00019933,2]
[421581373,1777917041000,-468.0,0.0002,2]
[421581381,1777917041000,-671.0,0.0002,2]
[421581382,1777917041000,-401.0,0.00020136,2]
[421581379,1777917041000,-156.0,0.0002,2]
[421581369,1777917041000,-153.0,0.0002,2]
[421581396,1777917041000,-401.0,0.00020683,2]
[421581397,1777917041000,-3062.62112962,0.00020813,2]
[421581399,1777917041000,-16409.88343799,0.00020857,2]
[421581388,1777917041000,-1529.45,0.00020145,2]
[421581402,1777917041000,-832.2,0.00020951,2]
[421581387,1777917041000,-1365.04,0.00020145,2]
[421581385,1777917041000,-239.96,0.00020145,2]
[421581403,1777917041000,-3771.9,0.00020951,2]
[421581390,1777917041000,-3091.93,0.00020145,2]
[421581392,1777917041000,-406.0,0.00020304,2]
[421581394,1777917041000,-347.7,0.00020381,2]
[421581405,1777917041000,-768.07,0.00020951,2]
[421581407,1777917041000,-214.0,0.00021,2]
[421581408,1777917041000,-153.0,0.00021,2]
[421581376,1777917041000,-205.0,0.0002,2]
[421581400,1777917041000,-419.22,0.00020951,2]
[421581374,1777917041000,-157.0,0.0002,2]
[421581341,1777917041000,-347.7,0.0001841,2]
[421581355,1777917041000,-2000.0,0.00019296,2]
[421581416,1777917041000,-160.0,0.00021,2]
[421581314,1777917041000,-176.0,0.00017691,2]
[421581316,1777917041000,-150.0,0.00017698,2]
[421581318,1777917041000,-819.70075855,0.00017702,2]
[421581320,1777917041000,-150.0,0.00017713,2]
[421581311,1777917041000,-1500.0,0.00017667,2]
[421581313,1777917041000,-150.0,0.00017673,2]
[421581309,1777917041000,-891.2748952,0.00017667,2]
[421581322,1777917041000,-150.0,0.00017774,2]
[421581324,1777917041000,-150.0,0.00017836,2]
[421581325,1777917041000,-151.86465197,0.00017836,2]
[421581327,1777917041000,-158.91744415,0.00017836,2]
[421581338,1777917041000,-398.67937662,0.00018192,12]
[421581329,1777917041000,-166.57642391,0.00017836,2]
[421581339,1777917041000,-503.88575088,0.00018215,2]
[421581346,1777917041000,-500.0,0.0001902,2]
[421581331,1777917041000,-153.76515705,0.00017836,2]
[421581344,1777917041000,-155.0,0.00019,2]
[421581332,1777917041000,-150.0,0.00017836,2]
[421581343,1777917041000,-1132.96779291,0.00019,2]
[421581334,1777917041000,-10000.0,0.00018,2]
[421581336,1777917041000,-1689.51035754,0.00018192,12]
[421581348,1777917041000,-3062.62112962,0.00019041,2]
[421581350,1777917041000,-16409.88343799,0.00019097,2]
[421581351,1777917041000,-500.0,0.00019178,2]
[421581353,1777917041000,-7255.47,0.00019178,2]
[421581362,1777917041000,-500.0,0.00019575,2]
[421581359,1777917041000,-1014.51073399,0.00019568,2]
[421581410,1777917041000,-180.0,0.00021,2]
[421581481,1777917041000,-150.0,0.000227,2]
[421581412,1777917041000,-468.0,0.00021,2]
[421581472,1777917041000,-3062.62112962,0.00022585,2]
[421581474,1777917041000,-16409.88343799,0.00022618,2]
[421581476,1777917041000,-150.0,0.00022631,4]
[421581479,1777917041000,-819.70075855,0.00022631,2]
[421581498,1777917041000,-2000.0,0.00023155,2]
[421581500,1777917041000,-150.0,0.00023242,4]
[421581526,1777917041000,-180.0,0.00024,2]
[421581493,1777917041000,-468.0,0.00023,2]
[421581489,1777917041000,-153.0,0.00023,2]
[421581496,1777917041000,-671.0,0.00023,2]
[421581485,1777917041000,-150.0,0.00022937,4]
[421581491,1777917041000,-180.0,0.00023,2]
[421581487,1777917041000,-214.0,0.00023,2]
[421581483,1777917041000,-181.84407951,0.000227,2]
[421581495,1777917041000,-205.0,0.00023,2]
[421581502,1777917041000,-250.0,0.00023248,2]
[421581512,1777917041000,-150.0,0.00023854,4]
[421581514,1777917041000,-1525.79140624,0.00023894,2]
[421581504,1777917041000,-150.0,0.00023548,4]
[421581519,1777917041000,-1050.0,0.00024,2]
[421581516,1777917041000,-160.654669,0.00023967,14]
[421581508,1777917041000,-172.155327,0.00023756,14]
[421581510,1777917041000,-350.0,0.00023796,2]
[421581517,1777917041000,-315.406239,0.00023967,14]
[421581522,1777917041000,-214.0,0.00024,2]
[421581506,1777917041000,-2289.89164006,0.00023675,29]
[421581524,1777917041000,-153.0,0.00024,2]
[421581459,1777917041000,-1562.31,0.00022533,2]
[421581461,1777917041000,-449.0,0.00022533,5]
[421581418,1777917041000,-671.0,0.00021,2]
[421581455,1777917041000,-164.0284166,0.00022407,2]
[421581457,1777917041000,-164.0284166,0.00022407,2]
[421581421,1777917041000,-2000.0,0.00021225,2]
[421581413,1777917041000,-165.8414555,0.00021,2]
[421581415,1777917041000,-205.0,0.00021,2]
[421581423,1777917041000,-160.0,0.00021359,2]
[421581425,1777917041000,-162.48539177,0.00021359,2]
[421581427,1777917041000,-6449.68,0.0002137,2]
[421581430,1777917041000,-1002.17,0.00021918,2]
[421581437,1777917041000,-180.0,0.00022,2]
[421581428,1777917041000,-231.04822777,0.000214,2]
[421581438,1777917041000,-468.0,0.00022,2]
[421581432,1777917041000,-5000.0,0.00021918,2]
[421581435,1777917041000,-153.0,0.00022,2]
[421581420,1777917041000,-218.07,0.00021224,2]
[421581440,1777917041000,-205.0,0.00022,2]
[421581454,1777917041000,-164.02841661,0.00022407,2]
[421581470,1777917041000,-662.12,0.00022562,2]
[421581468,1777917041000,-3251.64,0.00022562,2]
[421581466,1777917041000,-717.42,0.00022562,2]
[421581433,1777917041000,-214.0,0.00022,2]
[421581452,1777917041000,-554.57698604,0.00022393,2]
[421581465,1777917041000,-364.88,0.00022562,2]
[421581448,1777917041000,-150.0,0.00022325,4]
[421581442,1777917041000,-671.0,0.00022,2]
[421581450,1777917041000,-347.7,0.00022353,2]
[421581446,1777917041000,-166.16,0.00022192,2]
[421581444,1777917041000,-150.0,0.00022019,4]
[421581463,1777917041000,-500.0,0.00022548,2]
[421581615,1777917042000,-696.67,0.00027397,2]
[421581611,1777917042000,-1500.0,0.00027397,2]
[421581599,1777917042000,-347.7,0.00026296,2]
[421581613,1777917042000,-300.0,0.00027397,2]
[421581595,1777917042000,-3062.62112962,0.00026128,2]
[421581603,1777917042000,-300.78208283,0.00027,2]
[421581606,1777917042000,-506.0,0.00027137,2]
[421581601,1777917042000,-165.9,0.00026884,2]
[421581597,1777917042000,-16409.88343799,0.00026139,2]
[421581617,1777917042000,-1000.0,0.00027397,20]
[421581608,1777917042000,-703.04712992,0.00027216,2]
[421581621,1777917042000,-500.0,0.000274,7]
[421581625,1777917042000,-641.0,0.00027452,30]
[421581630,1777917042000,-641.0,0.00027452,30]
[421581623,1777917042000,-641.0,0.00027452,30]
[421581627,1777917042000,-641.0,0.00027452,30]
[421581636,1777917042000,-641.0,0.00027452,30]
[421581640,1777917042000,-150.0,0.00027452,30]
[421581634,1777917042000,-641.0,0.00027452,30]
[421581641,1777917042000,-641.0,0.00027452,30]
[421581638,1777917042000,-641.0,0.00027452,30]
[421581632,1777917042000,-641.0,0.00027452,30]
[421581646,1777917042000,-641.0,0.00027452,30]
[421581644,1777917042000,-177.10420021,0.00027452,30]
[421581593,1777917042000,-343.58,0.00025972,2]
[421581619,1777917042000,-1763.37,0.00027397,10]
[421581581,1777917042000,-678.42073817,0.00025,2]
[421581570,1777917042000,-220.28654051,0.00025,2]
[421581587,1777917042000,-156.96739478,0.00025277,2]
[421581527,1777917042000,-468.0,0.00024,2]
[421581537,1777917042000,-306.79,0.00024344,2]
[421581543,1777917042000,-150.0,0.00024466,7]
[421581532,1777917042000,-671.0,0.00024,2]
[421581536,1777917042000,-347.7,0.00024324,2]
[421581539,1777917042000,-3062.62112962,0.00024356,2]
[421581541,1777917042000,-16409.88343799,0.00024379,2]
[421581534,1777917042000,-150.0,0.0002416,4]
[421581530,1777917042000,-205.0,0.00024,2]
[421581550,1777917042000,-502.48871123,0.00024491,2]
[421581553,1777917042000,-500.0,0.00024491,2]
[421581559,1777917042000,-500.0,0.00024657,2]
[421581591,1777917042000,-239.21,0.00025972,2]
[421581555,1777917042000,-161.78,0.00024614,2]
[421581568,1777917042000,-616.90913674,0.00024835,2]
[421581561,1777917042000,-150.0,0.00024658,2]
[421581557,1777917042000,-1204.00680796,0.0002463,2]
[421581563,1777917042000,-696.67,0.00024658,2]
[421581565,1777917042000,-1000.0,0.00024658,2]
[421581574,1777917042000,-187.77265108,0.00025,2]
[421581578,1777917042000,-212.39465111,0.00025,2]
[421581585,1777917042000,-250.0,0.00025205,2]
[421581583,1777917042000,-300.0,0.000251,7]
[421581576,1777917042000,-478.0,0.00025,2]
[421581572,1777917042000,-164.98826873,0.00025,2]
[421581589,1777917042000,-165.9,0.00025482,2]
[421581650,1777917042000,-641.0,0.00027452,30]
[421581658,1777917042000,-641.0,0.00027452,30]
[421581655,1777917042000,-641.0,0.00027452,30]
[421581661,1777917042000,-641.0,0.00027452,30]
[421581717,1777917042000,-500.0,0.00027452,30]
[421581729,1777917042000,-500.0,0.00027452,30]
[421581714,1777917042000,-500.0,0.00027452,30]
[421581737,1777917042000,-819.70075855,0.00027561,2]
[421581740,1777917042000,-3190.1737443,0.00027702,2]
[421581741,1777917042000,-4809.969784,0.00027702,2]
[421581742,1777917042000,-98007.01995,0.00027702,2]
[421581733,1777917042000,-525.47398336,0.00027452,30]
[421581744,1777917042000,-494.0,0.00027756,2]
[421581648,1777917042000,-150.0,0.00027452,2]
[421581736,1777917042000,-703.04712992,0.00027558,2]
[421581743,1777917042000,-1507.4624471,0.00027702,2]
[421581732,1777917042000,-500.0,0.00027452,30]
[421581735,1777917042000,-703.04712992,0.00027554,2]
[421581739,1777917042000,-10258.2913,0.000277,2]
[421581745,1777917042000,-494.0,0.00027758,2]
[421581748,1777917042000,-1092.57212597,0.00027799,15]
[421581747,1777917042000,-494.0,0.00027773,2]
[421581750,1777917042000,-990.0,0.00027799,2]
[421581753,1777917042000,-390.94323661,0.00027799,5]
[421581749,1777917042000,-855.54129882,0.00027799,15]
[421581746,1777917042000,-494.0,0.00027771,2]
[421581752,1777917042000,-2500.0,0.00027799,5]
[421581751,1777917042000,-500.0,0.00027799,2]
[421581754,1777917042000,-2000.0,0.000278,10]
[421581755,1777917042000,-494.0,0.00027845,2]
[421581738,1777917042000,-3404.06005071,0.0002758,2]
[421581731,1777917042000,-500.0,0.00027452,30]
[421581734,1777917042000,-504.30324678,0.00027464,2]
[421581711,1777917042000,-500.0,0.00027452,30]
[421581716,1777917042000,-500.0,0.00027452,30]
[421581667,1777917042000,-641.0,0.00027452,30]
[421581652,1777917042000,-641.0,0.00027452,30]
[421581670,1777917042000,-641.0,0.00027452,30]
[421581676,1777917042000,-641.0,0.00027452,30]
[421581677,1777917042000,-641.0,0.00027452,30]
[421581680,1777917042000,-641.0,0.00027452,30]
[421581673,1777917042000,-641.0,0.00027452,30]
[421581684,1777917042000,-663.70238337,0.00027452,30]
[421581693,1777917042000,-500.0,0.00027452,30]
[421581686,1777917042000,-500.0,0.00027452,7]
[421581691,1777917042000,-500.0,0.00027452,7]
[421581687,1777917042000,-500.0,0.00027452,7]
[421581664,1777917042000,-641.0,0.00027452,30]
[421581690,1777917042000,-500.0,0.00027452,30]
[421581682,1777917042000,-641.0,0.00027452,30]
[421581727,1777917042000,-500.0,0.00027452,30]
[421581724,1777917042000,-500.0,0.00027452,30]
[421581721,1777917042000,-500.0,0.00027452,30]
[421581719,1777917042000,-500.0,0.00027452,30]
[421581713,1777917042000,-252.82399749,0.00027452,7]
[421581707,1777917042000,-500.0,0.00027452,30]
[421581701,1777917042000,-500.0,0.00027452,30]
[421581699,1777917042000,-500.0,0.00027452,30]
[421581697,1777917042000,-500.0,0.00027452,7]
[421581704,1777917042000,-500.0,0.00027452,7]
[421581709,1777917042000,-500.0,0.00027452,7]
[421581771,1777917043000,-12248.1672291,0.000279,2]
[421581777,1777917043000,-200.0,0.000279,2]
[421581775,1777917043000,-200.0,0.000279,2]
[421581776,1777917043000,-901.0,0.000279,2]
[421581773,1777917043000,-200.0,0.000279,2]
[421581774,1777917043000,-200.0,0.000279,2]
[421581779,1777917043000,-201.11497927,0.000279,2]
[421581772,1777917043000,-10000.0,0.000279,2]
[421581767,1777917043000,-2500.0,0.000279,10]
[421581770,1777917043000,-2094.7803709,0.000279,2]
[421581768,1777917043000,-3062.62112962,0.000279,2]
[421581766,1777917043000,-151.0,0.000279,2]
[421581763,1777917043000,-200.0,0.00027899,2]
[421581769,1777917043000,-16409.88343799,0.000279,2]
[421581761,1777917043000,-1525.79140624,0.00027875,2]
[421581759,1777917043000,-263.95753337,0.00027873,5]
[421581764,1777917043000,-1017.77,0.000279,7]
[421581765,1777917043000,-154.17611476,0.000279,2]
[421581758,1777917043000,-500.0,0.00027873,5]
[421581760,1777917043000,-399.26016995,0.00027873,5]
[421581757,1777917043000,-153.57543485,0.00027866,3]
[421581756,1777917043000,-557.0,0.00027866,5]
[421581780,1777917043000,-451.4030012,0.000279,2]
[421581762,1777917043000,-492.475028,0.00027899,2]
[421581778,1777917043000,-302.52115703,0.000279,2]
[421581802,1777917043000,-4788.24112008,0.00028,30]
[421581783,1777917043000,-504.30324678,0.00027949,2]
[421581781,1777917043000,-368.78554567,0.00027922,2]
[421581810,1777917043000,-14625.08774486,0.00028,30]
[421581805,1777917043000,-6720.0,0.00028,30]
[421581803,1777917043000,-425.63,0.00028,30]
[421581804,1777917043000,-9105.93876457,0.00028,30]
[421581813,1777917043000,-899.72188916,0.00028,30]
[421581798,1777917043000,-20807.02669326,0.00028,3]
[421581799,1777917043000,-29024.94036671,0.00028,30]
[421581801,1777917043000,-589.5062616,0.00028,30]
[421581800,1777917043000,-19707.99964549,0.00028,30]
[421581797,1777917043000,-6667.26990554,0.00028,3]
[421581793,1777917043000,-1025.49280924,0.00028,3]